fUSD/lending_fUSD_20250606
["ID","MTS","AMOUNT","RATE_DAILY","PERIOD"]
[364774779,1749238251193,-980.76,0.00027561,5]
[364774780,1749238251202,-2952.08,0.00027561,5]
[364774781,1749238251211,-1491.88,0.00027561,5]
[364774782,1749238251220,-513.98,0.00027561,5]
[364774783,1749238251229,-480.0,0.00027561,5]
[364774784,1749238251238,-545.79,0.00027561,5]
[364774785,1749238251248,-480.0,0.00027561,5]
[364774786,1749238251257,-480.0,0.00027561,5]
[364774787,1749238251267,-533.03,0.00027561,5]
[364774788,1749238251276,-1677.66,0.00027561,5]
[364774789,1749238251286,-480.0,0.00027561,5]
[364774790,1749238251296,-480.0,0.00027561,5]
[364774791,1749238251306,-4496.09,0.00027561,5]
[364774792,1749238251315,-1755.28,0.00027561,5]
[364774793,1749238251325,-662.984692,0.00027561,7]
[364774794,1749238251334,-1692.52,0.00027561,5]
[364774795,1749238251346,-662.984692,0.00027561,7]
[364774796,1749238251356,-1650.3,0.00027561,5]
[364774797,1749238251366,-835.24,0.00027561,5]
[364774798,1749238251376,-480.0,0.00027561,5]
[364774799,1749238251387,-480.0,0.00027561,2]
[364774800,1749238251397,-5267.72,0.00027561,5]
[364774801,1749238251407,-934.457951,0.00027561,5]
[364774802,1749238251416,-497.3887721,0.00027561,5]
[364774803,1749238251426,-480.0,0.00027561,5]
[364774804,1749238251435,-480.0,0.00027561,5]
[364774805,1749238251445,-480.0,0.00027561,5]
[364774806,1749238251455,-502.12,0.00027561,5]
[364774807,1749238251466,-729.42,0.00027561,5]
[364774808,1749238251475,-1800.89,0.00027561,5]
[364774809,1749238251485,-699.03,0.00027561,5]
[364774810,1749238251495,-480.0,0.00027561,5]
[364774811,1749238251506,-498.83,0.00027561,5]
[364774812,1749238251517,-1536.39,0.00027561,5]
[364774813,1749238251526,-5553.8,0.00027561,5]
[364774814,1749238251537,-698.46,0.00027561,2]
[364774815,1749238251548,-480.0,0.00027561,5]
[364774816,1749238251557,-480.0,0.00027561,5]
[364774817,1749238251567,-900.05,0.00027561,5]
[364774818,1749238251576,-694.21,0.00027561,5]
[364774819,1749238251586,-480.0,0.00027561,5]
[364774820,1749238251596,-2081.72,0.00027561,5]
[364774821,1749238251605,-480.0,0.00027561,5]
[364774822,1749238251616,-1295.96,0.00027561,5]
[364774823,1749238251626,-480.0,0.00027561,5]
[364774824,1749238251635,-480.0,0.00027561,5]
[364774825,1749238251645,-480.0,0.00027561,5]
[364774826,1749238251656,-483.69,0.00027561,5]
[364774827,1749238251667,-480.0,0.00027561,5]
[364774828,1749238251677,-484.44,0.00027561,5]
[364774829,1749238251688,-480.0,0.00027561,5]
[364774830,1749238251698,-10178.54,0.00027561,5]
[364774831,1749238251707,-480.0,0.00027561,5]
[364774832,1749238251717,-480.0,0.00027561,5]
[364774833,1749238251726,-480.0,0.00027561,5]
[364774834,1749238251736,-2453.62,0.00027561,5]
[364774835,1749238251745,-480.0,0.00027561,5]
[364774836,1749238251754,-150.0,0.00027562,2]
[364774837,1749238251764,-500.0,0.00027573,5]
[364774838,1749238251774,-617.50445255,0.00027585,2]
[364774839,1749238251783,-150.0,0.00027601,2]
[364774840,1749238251793,-150.0,0.00027601,2]
[364774841,1749238251802,-150.0,0.00027603,2]
[364774842,1749238251812,-151.0,0.00027605,7]
[364774843,1749238251822,-151.0,0.00027605,7]
[364774844,1749238251832,-150.0,0.0002761,2]
[364774845,1749238251841,-150.0,0.00027617,2]
[364774846,1749238251850,-150.0,0.00027625,2]
[364774847,1749238251860,-150.0,0.00027628,2]
[364774848,1749238251869,-1000.0,0.00027633,2]
[364774849,1749238251878,-150.0,0.00027642,2]
[364774850,1749238251887,-450.0,0.00027667,5]
[364774851,1749238251897,-150.0,0.00027679,2]
[364774852,1749238251907,-150.0,0.00027682,2]
[364774853,1749238251917,-150.0,0.00027689,2]
[364774854,1749238251926,-223.0315306,0.00027698,2]
[364774855,1749238251935,-2000.0,0.000277,2]
[364774856,1749238251944,-4300.0,0.000277,10]
[364774857,1749238251953,-413.36,0.000277,2]
[364774858,1749238251963,-150.0,0.00027715,2]
[364774859,1749238251973,-150.0,0.00027717,2]
[364774860,1749238251982,-150.0,0.00027718,2]
[364774861,1749238251991,-156.587,0.00027722,2]
[364774862,1749238252001,-1204.54,0.00027725,5]
[364774863,1749238252011,-1204.54,0.00027725,5]
[364774864,1749238252020,-151.0,0.00027726,7]
[364774865,1749238252030,-151.0,0.00027726,7]
[364774866,1749238252039,-151.0,0.00027726,7]
[364774867,1749238252048,-151.0,0.00027726,7]
[364774868,1749238252059,-151.0,0.00027726,7]
[364774869,1749238252069,-151.0,0.00027726,7]
[364774870,1749238252079,-151.0,0.00027726,7]
[364774871,1749238252088,-151.0,0.00027726,7]
[364774872,1749238252097,-151.0,0.00027726,7]
[364774873,1749238252107,-151.0,0.00027726,7]
[364774874,1749238252117,-151.0,0.00027726,7]
[364774875,1749238252127,-151.0,0.00027726,7]
[364774876,1749238252136,-151.0,0.00027726,7]
[364774877,1749238252146,-151.0,0.00027726,7]
[364774878,1749238252155,-151.0,0.00027726,7]
[364774879,1749238252165,-151.0,0.00027726,7]
[364774880,1749238252174,-151.0,0.00027726,7]
[364774881,1749238252184,-151.0,0.00027726,7]
[364774882,1749238252193,-151.0,0.00027726,7]
[364774883,1749238252203,-207.475781,0.00027726,7]
[364774884,1749238252212,-151.0,0.00027726,7]
[364774885,1749238252222,-151.674937,0.00027726,7]
[364774886,1749238252231,-228.103234,0.00027726,7]
[364774887,1749238252241,-151.0,0.00027726,7]
[364774888,1749238252251,-227.336484,0.00027726,7]
[364774889,1749238252261,-589.063325,0.00027726,7]
[364774890,1749238252271,-151.0,0.00027726,7]
[364774891,1749238252352,-151.0,0.00027726,7]
[364774892,1749238252362,-1027.574881,0.00027726,7]
[364774893,1749238252372,-1027.574881,0.00027726,7]
[364774894,1749238252381,-151.0,0.00027726,7]
[364774895,1749238252390,-151.0,0.00027726,7]
[364774896,1749238252400,-151.0,0.00027726,7]
[364774897,1749238252410,-151.0,0.00027726,7]
[364774898,1749238252419,-151.0,0.00027726,7]
[364774899,1749238252432,-151.0,0.00027726,7]
[364774900,1749238252448,-151.0,0.00027726,7]
[364774901,1749238252458,-151.0,0.00027726,7]
[364774902,1749238252467,-151.0,0.00027726,7]
[364774903,1749238252476,-152.209339,0.00027726,7]
[364774904,1749238252486,-151.0,0.00027726,7]
[364774905,1749238252495,-151.0,0.00027726,7]
[364774906,1749238252508,-151.0,0.00027726,7]
[364774907,1749238252519,-151.0,0.00027726,7]
[364774908,1749238252528,-155.137648,0.00027726,7]
[364774909,1749238252538,-151.0,0.00027726,7]
[364774910,1749238252547,-1184.242658,0.00027726,7]
[364774911,1749238252557,-1317.765658,0.00027726,5]
[364774912,1749238252565,-1184.242658,0.00027726,7]
[364774913,1749238252575,-151.0,0.00027726,7]
[364774914,1749238252585,-1517.919858,0.00027726,5]
[364774915,1749238252595,-151.0,0.00027726,7]
[364774916,1749238252604,-151.0,0.00027726,7]
[364774917,1749238252613,-151.0,0.00027726,7]
[364774918,1749238252622,-151.0,0.00027726,7]
[364774919,1749238252631,-602.044555,0.00027726,7]
[364774920,1749238252640,-480.0,0.00027726,5]
[364774921,1749238252649,-602.044555,0.00027726,7]
[364774922,1749238252659,-261.054565,0.00027726,7]
[364774923,1749238252669,-151.0,0.00027726,7]
[364774924,1749238252678,-261.054565,0.00027726,7]
[364774925,1749238252688,-151.0,0.00027726,7]
[364774926,1749238252697,-151.0,0.00027726,7]
[364774927,1749238252706,-172.604956,0.00027726,7]
[364774928,1749238252715,-151.0,0.00027726,7]
[364774929,1749238252724,-172.604956,0.00027726,7]
[364774930,1749238252733,-480.0,0.00027726,5]
[364774931,1749238252742,-480.0,0.00027726,5]
[364774932,1749238252751,-151.0,0.00027726,7]
[364774933,1749238252760,-151.0,0.00027726,7]
[364774934,1749238252769,-168.561443,0.00027726,5]
[364774935,1749238252778,-151.0,0.00027726,7]
[364774936,1749238252788,-151.0,0.00027726,7]
[364774937,1749238252797,-151.0,0.00027726,7]
[364774938,1749238252806,-587.63523916,0.00027726,5]
[364774939,1749238252816,-480.0,0.00027726,5]
[364774940,1749238252825,-151.0,0.00027726,7]
[364774941,1749238252834,-151.0,0.00027726,7]
[364774942,1749238252844,-151.0,0.00027726,7]
[364774943,1749238252853,-272.866602,0.00027726,7]
[364774944,1749238252862,-480.0,0.00027726,5]
[364774945,1749238252871,-480.0,0.00027726,5]
[364774946,1749238252881,-176.288002,0.00027726,7]
[364774947,1749238252890,-176.288002,0.00027726,7]
[364774948,1749238252899,-156.86458956,0.00027726,5]
[364774949,1749238252910,-480.0,0.00027726,5]
[364774950,1749238252919,-190.889101,0.00027726,7]
[364774951,1749238252928,-190.889101,0.00027726,7]
[364774952,1749238252937,-480.0,0.00027726,5]
[364774953,1749238252946,-151.0,0.00027726,7]
[364774954,1749238252955,-166.74833,0.00027726,7]
[364774955,1749238252964,-480.0,0.00027726,5]
[364774956,1749238252973,-166.74833,0.00027726,7]
[364774957,1749238252982,-166.74833,0.00027726,7]
[364774958,1749238252991,-166.74833,0.00027726,7]
[364774959,1749238253001,-480.0,0.00027726,5]
[364774960,1749238253010,-480.0,0.00027726,5]
[364774961,1749238253019,-290.092063,0.00027726,7]
[364774962,1749238253029,-290.092063,0.00027726,7]
[364774963,1749238253038,-290.092063,0.00027726,7]
[364774964,1749238253047,-290.092063,0.00027726,7]
[364774965,1749238253056,-151.0,0.00027726,7]
[364774966,1749238253065,-151.0,0.00027726,7]
[364774967,1749238253074,-151.0,0.00027726,7]
[364774968,1749238253085,-151.0,0.00027726,7]
[364774969,1749238253094,-151.0,0.00027726,7]
[364774970,1749238253103,-151.0,0.00027726,7]
[364774971,1749238253112,-151.0,0.00027726,7]
[364774972,1749238253121,-151.0,0.00027726,7]
[364774973,1749238253130,-395.142899,0.00027726,7]
[364774974,1749238253140,-395.142899,0.00027726,7]
[364774975,1749238253148,-395.142899,0.00027726,7]
[364774976,1749238253158,-395.142899,0.00027726,7]
[364774977,1749238253167,-488.54,0.00027726,5]
[364774978,1749238253176,-256.08438,0.00027726,7]
[364774979,1749238253186,-256.08438,0.00027726,7]
[364774980,1749238253194,-256.08438,0.00027726,7]
[364774981,1749238253204,-256.08438,0.00027726,7]
[364774982,1749238253213,-732.99,0.00027726,5]
[364774983,1749238253222,-480.0,0.00027726,5]
[364774984,1749238253231,-151.0,0.00027726,7]
[364774985,1749238253240,-151.0,0.00027726,7]
[364774986,1749238253250,-594.44,0.00027726,5]
[364774987,1749238253259,-1080.27,0.00027726,5]
[364774988,1749238253268,-151.0,0.00027726,7]
[364774989,1749238253277,-151.0,0.00027726,7]
[364774990,1749238253287,-151.0,0.00027726,7]
[364774991,1749238253296,-151.0,0.00027726,7]
[364774992,1749238253305,-487.01,0.00027726,5]
[364774993,1749238253314,-480.0,0.00027726,5]
[364774994,1749238253323,-480.0,0.00027726,5]
[364774995,1749238253332,-1121.24,0.00027726,5]
[364774996,1749238253342,-151.0,0.00027726,7]
[364774997,1749238253352,-965.99,0.00027726,5]
[364774998,1749238253361,-151.0,0.00027726,7]
[364774999,1749238253370,-151.0,0.00027726,7]
[364775000,1749238253379,-151.0,0.00027726,7]
[364775001,1749238253389,-480.0,0.00027726,5]
[364775002,1749238253398,-480.0,0.00027726,5]
[364775003,1749238253408,-480.0,0.00027726,5]
[364775004,1749238253418,-634.69,0.00027726,5]
[364775005,1749238253427,-164.369548,0.00027726,5]
[364775006,1749238253436,-657.28,0.00027726,5]
[364775007,1749238253445,-480.0,0.00027726,5]
[364775008,1749238253459,-422.2022803,0.00027726,5]
[364775009,1749238253468,-1036.73,0.00027726,5]
[364775010,1749238253477,-700.4,0.00027726,5]
[364775011,1749238253487,-522.03,0.00027726,5]
[364775012,1749238253496,-480.0,0.00027726,5]
[364775013,1749238253507,-151.0,0.00027726,7]
[364775014,1749238253517,-151.0,0.00027726,7]
[364775015,1749238253526,-480.0,0.00027726,5]
[364775016,1749238253535,-151.0,0.00027726,7]
[364775017,1749238253545,-172.674827,0.00027726,7]
[364775018,1749238253554,-600.0,0.00027726,30]
[364775019,1749238253563,-772.01,0.00027726,5]
[364775020,1749238253572,-480.0,0.00027726,5]
[364775021,1749238253582,-480.0,0.00027726,5]
[364775022,1749238253591,-588.08,0.00027726,5]
[364775023,1749238253601,-480.0,0.00027726,5]
[364775024,1749238253611,-385.50782476,0.00027726,5]
[364775025,1749238253619,-151.0,0.00027726,7]
[364775026,1749238253629,-510.66,0.00027726,5]
[364775027,1749238253638,-151.0,0.00027726,7]
[364775028,1749238253648,-480.0,0.00027726,5]
[364775029,1749238253658,-480.0,0.00027726,5]
[364775030,1749238253668,-480.0,0.00027726,5]
[364775031,1749238253677,-776.42,0.00027726,5]
[364775032,1749238253688,-570.13,0.00027726,5]
[364775033,1749238253698,-566.75,0.00027726,5]
[364775034,1749238253707,-891.4,0.00027726,5]
[364775035,1749238253716,-480.0,0.00027726,5]
[364775036,1749238253726,-741.477682,0.00027726,7]
[364775037,1749238253735,-741.477682,0.00027726,7]
[364775038,1749238253744,-851.49,0.00027726,5]
[364775039,1749238253753,-652.79,0.00027726,5]
[364775040,1749238253762,-741.477682,0.00027726,7]
[364775041,1749238253771,-741.477682,0.00027726,7]
[364775042,1749238253780,-151.0,0.00027726,7]
[364775043,1749238253789,-480.0,0.00027726,5]
[364775044,1749238253798,-151.0,0.00027726,7]
[364775045,1749238253807,-480.0,0.00027726,5]
[364775046,1749238253816,-480.0,0.00027726,5]
[364775047,1749238253825,-151.0,0.00027726,7]
[364775048,1749238253834,-875.61,0.00027726,5]
[364775049,1749238253843,-151.0,0.00027726,7]
[364775050,1749238253852,-533.65,0.00027726,5]
[364775051,1749238253861,-982.9,0.00027726,5]
[364775052,1749238253870,-480.0,0.00027726,5]
[364775053,1749238253879,-480.0,0.00027726,5]
[364775054,1749238253888,-724.05,0.00027726,5]
[364775055,1749238253897,-637.08,0.00027726,5]
[364775056,1749238253907,-511.37,0.00027726,5]
[364775057,1749238253917,-623.28,0.00027726,5]
[364775058,1749238253926,-480.0,0.00027726,5]
[364775059,1749238253935,-988.07,0.00027726,5]
[364775060,1749238253944,-151.0,0.00027726,7]
[364775061,1749238253953,-151.0,0.00027726,7]
[364775062,1749238253962,-666.13,0.00027726,5]
[364775063,1749238253971,-480.0,0.00027726,5]
[364775064,1749238253980,-518.61420619,0.00027726,5]
[364775065,1749238253990,-480.0,0.00027726,5]
[364775066,1749238253999,-480.0,0.00027726,5]
[364775067,1749238254008,-480.0,0.00027726,5]
[364775068,1749238254017,-564.4759579,0.00027726,5]
[364775069,1749238254028,-956.4,0.00027726,5]
[364775070,1749238254037,-702.51,0.00027726,5]
[364775071,1749238254046,-480.0,0.00027726,5]
[364775072,1749238254055,-302.5675082,0.00027726,5]
[364775073,1749238254064,-480.0,0.00027726,5]
[364775074,1749238254073,-151.0,0.00027726,7]
[364775075,1749238254083,-151.0,0.00027726,7]
[364775076,1749238254091,-480.0,0.00027726,5]
[364775077,1749238254101,-525.04,0.00027726,5]
[364775078,1749238254110,-545.11,0.00027726,5]
[364775079,1749238254119,-480.0,0.00027726,5]
[364775080,1749238254128,-480.0,0.00027726,5]
[364775081,1749238254137,-480.0,0.00027726,5]
[364775082,1749238254146,-548.91,0.00027726,5]
[364775083,1749238254155,-726.22,0.00027726,5]
[364775084,1749238254165,-1492.05,0.00027726,5]
[364775085,1749238254174,-151.715968,0.00027726,5]
[364775086,1749238254182,-480.0,0.00027726,5]
[364775087,1749238254191,-480.0,0.00027726,5]
[364775088,1749238254200,-151.0,0.00027726,7]
[364775089,1749238254209,-151.0,0.00027726,7]
[364775090,1749238254217,-534.21,0.00027726,5]
[364775091,1749238254226,-747.69,0.00027726,5]
[364775092,1749238254235,-317.999202,0.00027726,7]
[364775093,1749238254244,-151.0,0.00027726,7]
[364775094,1749238254252,-317.999202,0.00027726,7]
[364775095,1749238254262,-151.0,0.00027726,7]
[364775096,1749238254271,-480.0,0.00027726,5]
[364775097,1749238254280,-480.0,0.00027726,5]
[364775098,1749238254289,-480.0,0.00027726,5]
[364775099,1749238254298,-317.999202,0.00027726,7]
[364775100,1749238254307,-317.999202,0.00027726,7]
[364775101,1749238254316,-1118.221366,0.00027726,7]
[364775102,1749238254324,-1118.221366,0.00027726,7]
[364775103,1749238254333,-813.04,0.00027726,5]
[364775104,1749238254342,-2345.629707,0.00027726,7]
[364775105,1749238254351,-2345.629707,0.00027726,7]
[364775106,1749238254360,-709.62,0.00027726,5]
[364775107,1749238254369,-151.0,0.00027726,7]
[364775108,1749238254379,-289.831393,0.00027726,7]
[364775109,1749238254388,-1118.221366,0.00027726,7]
[364775110,1749238254397,-1118.221366,0.00027726,7]
[364775111,1749238254408,-2345.629707,0.00027726,7]
[364775112,1749238254417,-2345.629707,0.00027726,7]
[364775113,1749238254426,-480.0,0.00027726,5]
[364775114,1749238254435,-784.75,0.00027726,5]
[364775115,1749238254445,-769.75,0.00027726,5]
[364775116,1749238254454,-248.15643598,0.00027726,5]
[364775117,1749238254463,-151.0,0.00027726,7]
[364775118,1749238254473,-151.0,0.00027726,7]
[364775119,1749238254483,-480.0,0.00027726,5]
[364775120,1749238254492,-151.0,0.00027726,7]
[364775121,1749238254502,-238.035535,0.00027726,7]
[364775122,1749238254517,-480.0,0.00027726,5]
[364775123,1749238254527,-1609.82,0.00027726,5]
[364775124,1749238254536,-1327.01,0.00027726,5]
[364775125,1749238254545,-884.97,0.00027726,5]
[364775126,1749238254554,-480.0,0.00027726,5]
[364775127,1749238254564,-480.0,0.00027726,5]
[364775128,1749238254573,-556.78,0.00027726,5]
[364775129,1749238254582,-151.0,0.00027726,7]
[364775130,1749238254591,-151.0,0.00027726,7]
[364775131,1749238254600,-480.0,0.00027726,5]
[364775132,1749238254609,-480.0,0.00027726,5]
[364775133,1749238254618,-151.0,0.00027726,7]
[364775134,1749238254627,-151.0,0.00027726,7]
[364775135,1749238254636,-151.0,0.00027726,7]
[364775136,1749238254645,-151.0,0.00027726,7]
[364775137,1749238254655,-837.78,0.00027726,5]
[364775138,1749238254664,-169.543339,0.00027726,7]
[364775139,1749238254673,-233.095165,0.00027726,7]
[364775140,1749238254682,-233.095165,0.00027726,7]
[364775141,1749238254691,-722.94,0.00027726,5]
[364775142,1749238254701,-233.095165,0.00027726,7]
[364775143,1749238254710,-233.095165,0.00027726,7]
[364775144,1749238254719,-918.951478,0.00027726,7]
[364775145,1749238254728,-151.46824,0.00027726,7]
[364775146,1749238254738,-918.951478,0.00027726,7]
[364775147,1749238254747,-798.82,0.00027726,5]
[364775148,1749238254756,-151.0,0.00027726,7]
[364775149,1749238254765,-151.0,0.00027726,7]
[364775150,1749238254775,-151.0,0.00027726,7]
[364775151,1749238254784,-480.0,0.00027726,5]
[364775152,1749238254793,-151.0,0.00027726,7]
[364775153,1749238254803,-151.0,0.00027726,7]
[364775154,1749238254812,-480.0,0.00027726,5]
[364775155,1749238254821,-480.0,0.00027726,5]
[364775156,1749238254831,-841.94,0.00027726,5]
[364775157,1749238254840,-1110.18,0.00027726,5]
[364775158,1749238254849,-151.0,0.00027726,7]
[364775159,1749238254858,-151.0,0.00027726,7]
[364775160,1749238254867,-151.0,0.00027726,7]
[364775161,1749238254876,-541.95,0.00027726,5]
[364775162,1749238254885,-501.99,0.00027726,5]
[364775163,1749238254894,-734.58,0.00027726,5]
[364775164,1749238254905,-940.18,0.00027726,5]
[364775165,1749238254914,-480.0,0.00027726,5]
[364775166,1749238254923,-2677.08,0.00027726,5]
[364775167,1749238254932,-748.04,0.00027726,5]
[364775168,1749238254941,-493.75,0.00027726,5]
[364775169,1749238254951,-480.0,0.00027726,5]
[364775170,1749238254959,-882.46,0.00027726,5]
[364775171,1749238254968,-480.0,0.00027726,5]
[364775172,1749238254978,-635.55,0.00027726,5]
[364775173,1749238254987,-480.0,0.00027726,5]
[364775174,1749238254996,-151.0,0.00027726,7]
[364775175,1749238255005,-526.86,0.00027726,5]
[364775176,1749238255014,-59280.37,0.00027726,5]
[364775177,1749238255023,-1593.82,0.00027726,5]
[364775178,1749238255033,-480.0,0.00027726,5]
[364775179,1749238255042,-2740.76,0.00027726,5]
[364775180,1749238255051,-480.0,0.00027726,5]
[364775181,1749238255060,-480.0,0.00027726,5]
[364775182,1749238255069,-480.0,0.00027726,5]
[364775183,1749238255078,-151.0,0.00027726,7]
[364775184,1749238255087,-151.0,0.00027726,7]
[364775185,1749238255096,-1096.11,0.00027726,5]
[364775186,1749238255105,-511.43,0.00027726,5]
[364775187,1749238255114,-480.0,0.00027726,5]
[364775188,1749238255123,-480.0,0.00027726,5]
[364775189,1749238255132,-1000.0,0.00027726,2]
[364775190,1749238255141,-1254.37,0.00027726,5]
[364775191,1749238255150,-8256.04,0.00027726,5]
[364775192,1749238255160,-480.0,0.00027726,5]
[364775193,1749238255170,-2434.11,0.00027726,5]
[364775194,1749238255178,-3890.87,0.00027726,5]
[364775195,1749238255187,-996.25,0.00027726,5]
[364775196,1749238255197,-665.27,0.00027726,5]
[364775197,1749238255207,-480.0,0.00027726,5]
[364775198,1749238255215,-1569.61,0.00027726,5]
[364775199,1749238255225,-480.0,0.00027726,5]
[364775200,1749238255234,-1000.0,0.00027726,5]
[364775201,1749238255243,-480.0,0.00027726,5]
[364775202,1749238255252,-528.51,0.00027726,5]
[364775203,1749238255262,-714.18,0.00027726,5]
[364775204,1749238255271,-675.52,0.00027726,5]
[364775205,1749238255280,-1429.09,0.00027726,5]
[364775206,1749238255289,-665.04,0.00027726,5]
[364775207,1749238255298,-151.0,0.00027726,7]
[364775208,1749238255307,-189.067661,0.00027726,7]
[364775209,1749238255316,-189.067661,0.00027726,7]
[364775210,1749238255326,-2692.59,0.00027726,5]
[364775211,1749238255335,-2650.03,0.00027726,5]
[364775212,1749238255344,-269.304407,0.00027726,7]
[364775213,1749238255354,-1407.53,0.00027726,5]
[364775214,1749238255363,-480.0,0.00027726,5]
[364775215,1749238255372,-1044.58,0.00027726,5]
[364775216,1749238255381,-189.067661,0.00027726,7]
[364775217,1749238255391,-189.067661,0.00027726,7]
[364775218,1749238255400,-179.508406,0.00027726,7]
[364775219,1749238255411,-179.508406,0.00027726,7]
[364775220,1749238255421,-549.16568884,0.00027726,5]
[364775221,1749238255430,-461.975126,0.00027726,7]
[364775222,1749238255439,-1121.69,0.00027726,5]
[364775223,1749238255449,-480.0,0.00027726,5]
[364775224,1749238255458,-461.975126,0.00027726,7]
[364775225,1749238255467,-480.0,0.00027726,5]
[364775226,1749238255476,-151.0,0.00027726,7]
[364775227,1749238255486,-151.0,0.00027726,7]
[364775228,1749238255495,-1259.89,0.00027726,5]
[364775229,1749238255506,-179.508406,0.00027726,7]
[364775230,1749238255524,-179.508406,0.00027726,7]
[364775231,1749238255534,-461.975126,0.00027726,7]
[364775232,1749238255543,-1000.59,0.00027726,5]
[364775233,1749238255552,-461.975126,0.00027726,7]
[364775234,1749238255561,-682.93,0.00027726,5]
[364775235,1749238255570,-10449.09,0.00027726,5]
[364775236,1749238255578,-480.0,0.00027726,5]
[364775237,1749238255588,-2196.0,0.00027726,5]
[364775238,1749238255597,-2596.53,0.00027726,5]
[364775239,1749238255606,-2684.12,0.00027726,5]
[364775240,1749238255615,-480.0,0.00027726,5]
[364775241,1749238255624,-480.0,0.00027726,5]
[364775242,1749238255633,-1035.64,0.00027726,5]
[364775243,1749238255642,-1413.85,0.00027726,5]
[364775244,1749238255651,-269.254107,0.00027726,7]
[364775245,1749238255660,-269.254107,0.00027726,7]
[364775246,1749238255669,-1346.8,0.00027726,5]
[364775247,1749238255678,-789.6,0.00027726,5]
[364775248,1749238255688,-1405.33,0.00027726,5]
[364775249,1749238255697,-480.0,0.00027726,5]
[364775250,1749238255707,-269.254107,0.00027726,7]
[364775251,1749238255715,-269.254107,0.00027726,7]
[364775252,1749238255725,-151.0,0.00027726,7]
[364775253,1749238255734,-685.7,0.00027726,5]
[364775254,1749238255743,-480.0,0.00027726,5]
[364775255,1749238255752,-887.66,0.00027726,5]
[364775256,1749238255761,-480.0,0.00027726,5]
[364775257,1749238255770,-1130.7,0.00027726,5]
[364775258,1749238255779,-480.0,0.00027726,5]
[364775259,1749238255789,-480.0,0.00027726,5]
[364775260,1749238255798,-2132.1,0.00027726,5]
[364775261,1749238255807,-480.0,0.00027726,5]
[364775262,1749238255816,-1647.92,0.00027726,5]
[364775263,1749238255826,-834.35,0.00027726,5]
[364775264,1749238255835,-4392.99,0.00027726,5]
[364775265,1749238255843,-3015.43,0.00027726,5]
[364775266,1749238255853,-480.0,0.00027726,5]
[364775267,1749238255862,-480.0,0.00027726,5]
[364775268,1749238255871,-1470.46,0.00027726,5]
[364775269,1749238255880,-1546.73,0.00027726,5]
[364775270,1749238255889,-1479.99,0.00027726,5]
[364775271,1749238255899,-1186.47,0.00027726,5]
[364775272,1749238255909,-514.62,0.00027726,5]
[364775273,1749238255919,-480.0,0.00027726,5]
[364775274,1749238255931,-835.23,0.00027726,5]
[364775275,1749238255941,-480.0,0.00027726,5]
[364775276,1749238255950,-1102.69,0.00027726,5]
[364775277,1749238255960,-689.03,0.00027726,5]
[364775278,1749238255970,-1040.68,0.00027726,5]